[Event "Titled Tuesday Blitz July 4 Late 2023"]
[White "Vlassov, Nikolai"]
[Black "Cooper, Aaron"]
[WhiteFideId "4103360"]
[BlackFideId "2634945"]
[WhiteElo "2570"]
[BlackElo "2214"]
[Result "1-0"]
[Round "5"]
[TimeControl "180+2"]
[Date "2023.07.04"]
[WhiteClock "0:02:37"]
[BlackClock "0:02:16"]
[Board "109"]

1. e4 {[%clk 0:03:00]}  d5 {[%clk 0:02:57]} 2. exd5 {[%clk 0:03:00]}  Qxd5 {[%clk 0:02:56]} 3. Nf3 {[%clk 0:02:59]}  Bg4 {[%clk 0:02:55]} 4. Be2 {[%clk 0:02:58]}  Nc6 {[%clk 0:02:55]} 5. O-O {[%clk 0:02:56]}  e5 {[%clk 0:02:54]} 6. Nc3 {[%clk 0:02:52]}  Qd7 {[%clk 0:02:52]} 7. h3 {[%clk 0:02:46]}  Bxf3 {[%clk 0:02:43]} 8. Bxf3 {[%clk 0:02:45]}  Nf6 {[%clk 0:02:43]} 9. Re1 {[%clk 0:02:44]}  Bd6 {[%clk 0:02:36]} 10. d4 {[%clk 0:02:40]}  Nxd4 {[%clk 0:02:16]} 11. Qxd4 {[%clk 0:02:37]} 1-0


[Site "https://www.chess.com"]

[Event "Titled Tuesday Blitz July 4 Late 2023"]
[White "Mickiewicz, Piotr"]
[Black "Pasti, Aron"]
[WhiteFideId "1114891"]
[BlackFideId "785857"]
[WhiteElo "2422"]
[BlackElo "2551"]
[Result "1-0"]
[Round "5"]
[TimeControl "180+2"]
[Date "2023.07.04"]
[WhiteClock "0:02:02"]
[BlackClock "0:01:21"]
[Board "110"]

1. Nf3 {[%clk 0:03:00]}  d5 {[%clk 0:02:58]} 2. g3 {[%clk 0:03:01]}  Nc6 {[%clk 0:02:57]} 3. Bg2 {[%clk 0:03:02]}  e5 {[%clk 0:02:57]} 4. d3 {[%clk 0:03:01]}  Nf6 {[%clk 0:02:57]} 5. O-O {[%clk 0:03:01]}  Bg4 {[%clk 0:02:57]} 6. c4 {[%clk 0:02:59]}  dxc4 {[%clk 0:02:57]} 7. Qa4 {[%clk 0:02:57]}  Bd6 {[%clk 0:02:19]} 8. Qxc4 {[%clk 0:02:40]}  O-O {[%clk 0:02:17]} 9. Bg5 {[%clk 0:02:40]}  h6 {[%clk 0:02:04]} 10. Bxf6 {[%clk 0:02:38]}  Qxf6 {[%clk 0:02:05]} 11. Qxg4 {[%clk 0:02:37]}  e4 {[%clk 0:01:56]} 12. dxe4 {[%clk 0:02:36]}  Qxb2 {[%clk 0:01:56]} 13. Nbd2 {[%clk 0:02:36]}  Bb4 {[%clk 0:01:53]} 14. Nc4 {[%clk 0:02:23]}  Qxe2 {[%clk 0:01:49]} 15. Nfe5 {[%clk 0:02:03]}  Bc3 {[%clk 0:01:21]} 16. Qxe2 {[%clk 0:02:02]} 1-0


[Site "https://www.chess.com"]

[Event "Titled Tuesday Blitz July 4 Late 2023"]
[White "Cooklev, Steven"]
[Black "Aggelis, Nikolaos"]
[WhiteFideId "2050552"]
[BlackFideId "4213220"]
[WhiteElo "2378"]
[BlackElo "2521"]
[Result "0-1"]
[Round "5"]
[TimeControl "180+2"]
[Date "2023.07.04"]
[WhiteClock "0:00:00"]
[BlackClock "0:00:17"]
[Board "114"]

1. e4 {[%clk 0:03:00]}  c6 {[%clk 0:02:57]} 2. Nc3 {[%clk 0:03:00]}  d5 {[%clk 0:02:53]} 3. Nf3 {[%clk 0:03:00]}  dxe4 {[%clk 0:02:51]} 4. Nxe4 {[%clk 0:03:01]}  Bg4 {[%clk 0:02:50]} 5. Be2 {[%clk 0:02:59]}  Bxf3 {[%clk 0:02:50]} 6. Bxf3 {[%clk 0:02:58]}  Nd7 {[%clk 0:02:51]} 7. d4 {[%clk 0:02:48]}  Ngf6 {[%clk 0:02:50]} 8. Nxf6+ {[%clk 0:02:40]}  Nxf6 {[%clk 0:02:50]} 9. c3 {[%clk 0:02:37]}  e6 {[%clk 0:02:51]} 10. Qb3 {[%clk 0:02:37]}  Qc7 {[%clk 0:02:50]} 11. Bg5 {[%clk 0:01:54]}  Be7 {[%clk 0:02:48]} 12. Bh4 {[%clk 0:01:53]}  O-O-O {[%clk 0:02:45]} 13. Bg3 {[%clk 0:01:48]}  Bd6 {[%clk 0:02:45]} 14. Bxd6 {[%clk 0:01:45]}  Qxd6 {[%clk 0:02:39]} 15. O-O {[%clk 0:01:46]}  g5 {[%clk 0:02:34]} 16. Qa4 {[%clk 0:01:35]}  Kb8 {[%clk 0:02:32]} 17. Rfe1 {[%clk 0:01:25]}  g4 {[%clk 0:02:28]} 18. Be2 {[%clk 0:01:25]}  h5 {[%clk 0:02:27]} 19. b4 {[%clk 0:01:24]}  h4 {[%clk 0:02:26]} 20. b5 {[%clk 0:01:24]}  c5 {[%clk 0:02:21]} 21. dxc5 {[%clk 0:01:21]}  Qxc5 {[%clk 0:01:32]} 22. Qf4+ {[%clk 0:01:21]}  Ka8 {[%clk 0:01:33]} 23. Qxf6 {[%clk 0:01:21]}  g3 {[%clk 0:01:34]} 24. h3 {[%clk 0:01:13]}  Rhg8 {[%clk 0:01:30]} 25. Rad1 {[%clk 0:01:08]}  Rc8 {[%clk 0:01:18]} 26. Rd3 {[%clk 0:00:45]}  Rg6 {[%clk 0:01:15]} 27. Qxf7 {[%clk 0:00:33]}  Rf8 {[%clk 0:01:15]} 28. Rf1 {[%clk 0:00:16]}  Rgg8 {[%clk 0:01:03]} 29. Qxe6 {[%clk 0:00:11]}  Rxf2 {[%clk 0:01:04]} 30. Qe3 {[%clk 0:00:10]}  Rxf1+ {[%clk 0:00:32]} 31. Bxf1 {[%clk 0:00:10]}  Qf5 {[%clk 0:00:26]} 32. Qd2 {[%clk 0:00:07]}  Qf6 {[%clk 0:00:21]} 33. Rf3 {[%clk 0:00:06]}  Qb6+ {[%clk 0:00:20]} 34. Qd4 {[%clk 0:00:07]}  Qc7 {[%clk 0:00:18]} 35. c4 {[%clk 0:00:05]}  Rd8 {[%clk 0:00:18]} 36. Qxh4 {[%clk 0:00:00]}  Qc5+ {[%clk 0:00:17]} 0-1


[Site "https://www.chess.com"]

[Event "Titled Tuesday Blitz July 4 Late 2023"]
[White "Svicevic, Rastko"]
[Black "Reprintsev, Alexander"]
[WhiteFideId "916315"]
[BlackFideId "14100541"]
[WhiteElo "2360"]
[BlackElo "2484"]
[Result "0-1"]
[Round "5"]
[TimeControl "180+2"]
[Date "2023.07.04"]
[WhiteClock "0:00:04"]
[BlackClock "0:00:22"]
[Board "117"]

1. d4 {[%clk 0:03:00]}  d5 {[%clk 0:02:55]} 2. Bg5 {[%clk 0:03:01]}  Nc6 {[%clk 0:02:54]} 3. e3 {[%clk 0:03:00]}  f6 {[%clk 0:02:52]} 4. Bh4 {[%clk 0:03:00]}  Nh6 {[%clk 0:02:52]} 5. Bg3 {[%clk 0:02:55]}  e5 {[%clk 0:02:37]} 6. c3 {[%clk 0:02:42]}  Nf5 {[%clk 0:02:22]} 7. Bb5 {[%clk 0:02:33]}  h5 {[%clk 0:02:02]} 8. Bxc6+ {[%clk 0:01:38]}  bxc6 {[%clk 0:02:01]} 9. h3 {[%clk 0:01:24]}  Nxg3 {[%clk 0:02:00]} 10. fxg3 {[%clk 0:01:25]}  Bd6 {[%clk 0:01:58]} 11. Ne2 {[%clk 0:01:25]}  c5 {[%clk 0:01:54]} 12. Nd2 {[%clk 0:01:23]}  cxd4 {[%clk 0:01:52]} 13. cxd4 {[%clk 0:01:24]}  exd4 {[%clk 0:01:41]} 14. exd4 {[%clk 0:01:18]}  h4 {[%clk 0:01:34]} 15. O-O {[%clk 0:01:11]}  hxg3 {[%clk 0:01:32]} 16. Qb3 {[%clk 0:01:08]}  c6 {[%clk 0:01:27]} 17. Nxg3 {[%clk 0:01:05]}  Rb8 {[%clk 0:00:52]} 18. Rae1+ {[%clk 0:01:02]}  Kf8 {[%clk 0:00:51]} 19. Qd3 {[%clk 0:00:55]}  Rxb2 {[%clk 0:00:45]} 20. Nf5 {[%clk 0:00:51]}  Bxf5 {[%clk 0:00:41]} 21. Rxf5 {[%clk 0:00:50]}  Bb4 {[%clk 0:00:40]} 22. Re2 {[%clk 0:00:36]}  Bxd2 {[%clk 0:00:38]} 23. Rxd2 {[%clk 0:00:37]}  Rxd2 {[%clk 0:00:37]} 24. Qxd2 {[%clk 0:00:38]}  Rh4 {[%clk 0:00:35]} 25. Qf2 {[%clk 0:00:19]}  Re4 {[%clk 0:00:34]} 26. Rf3 {[%clk 0:00:19]}  Qe7 {[%clk 0:00:32]} 27. Rb3 {[%clk 0:00:18]}  Kf7 {[%clk 0:00:31]} 28. Rb1 {[%clk 0:00:15]}  Re2 {[%clk 0:00:30]} 29. Qf3 {[%clk 0:00:15]}  Qe3+ {[%clk 0:00:30]} 30. Qxe3 {[%clk 0:00:15]}  Rxe3 {[%clk 0:00:30]} 31. Rb7+ {[%clk 0:00:15]}  Re7 {[%clk 0:00:30]} 32. Rb4 {[%clk 0:00:13]}  Re4 {[%clk 0:00:29]} 33. Kf2 {[%clk 0:00:11]}  Kg6 {[%clk 0:00:28]} 34. Ra4 {[%clk 0:00:09]}  c5 {[%clk 0:00:28]} 35. Rxa7 {[%clk 0:00:09]}  Rxd4 {[%clk 0:00:28]} 36. a4 {[%clk 0:00:10]}  Rd2+ {[%clk 0:00:28]} 37. Kf3 {[%clk 0:00:08]}  c4 {[%clk 0:00:28]} 38. a5 {[%clk 0:00:08]}  Ra2 {[%clk 0:00:25]} 39. a6 {[%clk 0:00:08]}  Kf5 {[%clk 0:00:24]} 40. Rd7 {[%clk 0:00:05]}  Ke6 {[%clk 0:00:22]} 41. a7 {[%clk 0:00:04]}  Kxd7 {[%clk 0:00:22]} 0-1


[Site "https://www.chess.com"]

[Event "Titled Tuesday Blitz July 4 Late 2023"]
[White "Baches Garcia, Guillermo"]
[Black "Haitin, Ilja"]
[WhiteFideId "2209764"]
[BlackFideId "4501764"]
[WhiteElo "2464"]
[BlackElo "2333"]
[Result "1/2-1/2"]
[Round "5"]
[TimeControl "180+2"]
[Date "2023.07.04"]
[WhiteClock "0:00:03"]
[BlackClock "0:00:00"]
[Board "118"]

1. e4 {[%clk 0:03:00]}  e6 {[%clk 0:02:59]} 2. d4 {[%clk 0:02:59]}  d5 {[%clk 0:02:59]} 3. exd5 {[%clk 0:03:00]}  exd5 {[%clk 0:02:59]} 4. Nf3 {[%clk 0:03:01]}  Bd6 {[%clk 0:02:56]} 5. c4 {[%clk 0:03:00]}  dxc4 {[%clk 0:02:40]} 6. Bxc4 {[%clk 0:03:00]}  Nf6 {[%clk 0:02:40]} 7. O-O {[%clk 0:02:57]}  O-O {[%clk 0:02:41]} 8. Nc3 {[%clk 0:02:58]}  Nc6 {[%clk 0:02:41]} 9. h3 {[%clk 0:02:50]}  h6 {[%clk 0:02:41]} 10. Qc2 {[%clk 0:02:46]}  a6 {[%clk 0:02:36]} 11. Bxh6 {[%clk 0:02:26]}  gxh6 {[%clk 0:02:02]} 12. Qg6+ {[%clk 0:02:26]}  Kh8 {[%clk 0:02:02]} 13. Qxh6+ {[%clk 0:02:25]}  Nh7 {[%clk 0:01:55]} 14. Ne4 {[%clk 0:02:19]}  Bf5 {[%clk 0:01:43]} 15. Rfe1 {[%clk 0:02:16]}  Bxe4 {[%clk 0:01:26]} 16. Rxe4 {[%clk 0:02:15]}  Qf6 {[%clk 0:01:27]} 17. Qe3 {[%clk 0:02:06]}  Rg8 {[%clk 0:01:19]} 18. Re1 {[%clk 0:01:57]}  Rg7 {[%clk 0:01:14]} 19. g4 {[%clk 0:01:49]}  Rag8 {[%clk 0:01:13]} 20. Re8 {[%clk 0:01:47]}  Rxe8 {[%clk 0:01:11]} 21. Qxe8+ {[%clk 0:01:46]}  Rg8 {[%clk 0:01:11]} 22. Qxf7 {[%clk 0:01:38]}  Qxf7 {[%clk 0:01:06]} 23. Bxf7 {[%clk 0:01:39]}  Rf8 {[%clk 0:01:06]} 24. Bd5 {[%clk 0:01:33]}  Nf6 {[%clk 0:01:00]} 25. Bxc6 {[%clk 0:01:24]}  bxc6 {[%clk 0:01:01]} 26. Rc1 {[%clk 0:01:17]}  Nd5 {[%clk 0:00:57]} 27. Ne5 {[%clk 0:01:12]}  Kg7 {[%clk 0:00:44]} 28. Rxc6 {[%clk 0:01:07]}  Nb4 {[%clk 0:00:43]} 29. Rc4 {[%clk 0:01:00]}  Nxa2 {[%clk 0:00:41]} 30. Nd3 {[%clk 0:00:52]}  a5 {[%clk 0:00:39]} 31. Kg2 {[%clk 0:00:44]}  Nb4 {[%clk 0:00:38]} 32. Ne5 {[%clk 0:00:42]}  Nd5 {[%clk 0:00:35]} 33. Nc6 {[%clk 0:00:37]}  Nf4+ {[%clk 0:00:32]} 34. Kf1 {[%clk 0:00:36]}  Nxh3 {[%clk 0:00:31]} 35. Nxa5 {[%clk 0:00:35]}  Rxf2+ {[%clk 0:00:28]} 36. Ke1 {[%clk 0:00:35]}  Rxb2 {[%clk 0:00:29]} 37. Nc6 {[%clk 0:00:33]}  Nf4 {[%clk 0:00:24]} 38. Kd1 {[%clk 0:00:31]}  Kf6 {[%clk 0:00:23]} 39. Ra4 {[%clk 0:00:27]}  Kg5 {[%clk 0:00:22]} 40. Kc1 {[%clk 0:00:19]}  Rb6 {[%clk 0:00:18]} 41. Nd8 {[%clk 0:00:16]}  Kxg4 {[%clk 0:00:17]} 42. d5 {[%clk 0:00:16]}  Kf5 {[%clk 0:00:16]} 43. Ra5 {[%clk 0:00:14]}  Ke5 {[%clk 0:00:15]} 44. Nc6+ {[%clk 0:00:11]}  Kf6 {[%clk 0:00:14]} 45. Kd2 {[%clk 0:00:10]}  Nxd5 {[%clk 0:00:13]} 46. Nd4 {[%clk 0:00:10]}  Ne7 {[%clk 0:00:11]} 47. Rh5 {[%clk 0:00:08]}  Rb2+ {[%clk 0:00:10]} 48. Kc3 {[%clk 0:00:07]}  Rg2 {[%clk 0:00:09]} 49. Rh3 {[%clk 0:00:07]}  Rg3+ {[%clk 0:00:08]} 50. Rxg3 {[%clk 0:00:07]}  Bxg3 {[%clk 0:00:09]} 51. Nb5 {[%clk 0:00:07]}  c6 {[%clk 0:00:09]} 52. Na7 {[%clk 0:00:07]}  c5 {[%clk 0:00:06]} 53. Kc4 {[%clk 0:00:07]}  Bf2 {[%clk 0:00:04]} 54. Nb5 {[%clk 0:00:04]}  Nc6 {[%clk 0:00:00]} 55. Nc7 {[%clk 0:00:03]} 1/2-1/2


[Site "https://www.chess.com"]

[Event "Titled Tuesday Blitz July 4 Late 2023"]
[White "Sanchez, Robert"]
[Black "Lalanne, Pablo"]
[WhiteFideId "2034360"]
[BlackFideId "112151"]
[WhiteElo "2202"]
[BlackElo "2427"]
[Result "0-1"]
[Round "5"]
[TimeControl "180+2"]
[Date "2023.07.04"]
[WhiteClock "0:01:28"]
[BlackClock "0:01:35"]
[Board "123"]

1. e4 {[%clk 0:03:00]}  e5 {[%clk 0:02:58]} 2. Nf3 {[%clk 0:03:01]}  Nc6 {[%clk 0:02:57]} 3. Bb5 {[%clk 0:03:01]}  a6 {[%clk 0:02:57]} 4. Ba4 {[%clk 0:03:01]}  Nf6 {[%clk 0:02:57]} 5. d3 {[%clk 0:03:01]}  b5 {[%clk 0:02:51]} 6. Bb3 {[%clk 0:03:00]}  Be7 {[%clk 0:02:47]} 7. O-O {[%clk 0:02:59]}  O-O {[%clk 0:02:47]} 8. c3 {[%clk 0:02:59]}  d6 {[%clk 0:02:42]} 9. h3 {[%clk 0:02:58]}  h6 {[%clk 0:02:31]} 10. Re1 {[%clk 0:02:58]}  Re8 {[%clk 0:02:28]} 11. Nbd2 {[%clk 0:02:58]}  Bf8 {[%clk 0:02:28]} 12. Nf1 {[%clk 0:02:58]}  Ne7 {[%clk 0:02:27]} 13. Ng3 {[%clk 0:02:52]}  Ng6 {[%clk 0:02:27]} 14. Be3 {[%clk 0:02:49]}  c5 {[%clk 0:02:25]} 15. Qd2 {[%clk 0:02:44]}  a5 {[%clk 0:02:20]} 16. a4 {[%clk 0:02:43]}  b4 {[%clk 0:02:17]} 17. cxb4 {[%clk 0:02:43]}  axb4 {[%clk 0:02:16]} 18. Bc4 {[%clk 0:02:29]}  d5 {[%clk 0:02:02]} 19. exd5 {[%clk 0:02:25]}  Nxd5 {[%clk 0:02:01]} 20. Ne4 {[%clk 0:02:21]}  Ra5 {[%clk 0:01:51]} 21. b3 {[%clk 0:02:08]}  Be6 {[%clk 0:01:50]} 22. Rac1 {[%clk 0:01:54]}  f5 {[%clk 0:01:44]} 23. Ng3 {[%clk 0:01:40]}  f4 {[%clk 0:01:42]} 24. Nxe5 {[%clk 0:01:40]}  fxe3 {[%clk 0:01:35]} 25. fxe3 {[%clk 0:01:28]}  Nxe5 {[%clk 0:01:35]} 0-1


[Site "https://www.chess.com"]

[Event "Titled Tuesday Blitz July 4 Late 2023"]
[White "Omariev, Maksim"]
[Black "Mangialardo, Tiago Carvalho"]
[WhiteFideId "4193423"]
[BlackFideId "2130718"]
[WhiteElo "2424"]
[BlackElo "2122"]
[Result "1-0"]
[Round "5"]
[TimeControl "180+2"]
[Date "2023.07.04"]
[WhiteClock "0:00:35"]
[BlackClock "0:00:00"]
[Board "124"]

1. g4 {[%clk 0:02:42]}  e5 {[%clk 0:02:51]} 2. Bg2 {[%clk 0:02:42]}  d5 {[%clk 0:02:51]} 3. h3 {[%clk 0:02:41]}  h5 {[%clk 0:02:47]} 4. d4 {[%clk 0:02:40]}  e4 {[%clk 0:02:39]} 5. g5 {[%clk 0:02:39]}  h4 {[%clk 0:02:12]} 6. c4 {[%clk 0:02:36]}  c6 {[%clk 0:02:11]} 7. Nc3 {[%clk 0:02:34]}  Ne7 {[%clk 0:01:57]} 8. Qb3 {[%clk 0:02:27]}  Nf5 {[%clk 0:01:40]} 9. cxd5 {[%clk 0:02:17]}  Nxd4 {[%clk 0:01:38]} 10. Qa4 {[%clk 0:02:11]}  Bc5 {[%clk 0:01:24]} 11. Be3 {[%clk 0:01:53]}  Qb6 {[%clk 0:01:01]} 12. O-O-O {[%clk 0:01:43]}  Nb5 {[%clk 0:00:22]} 13. Qxe4+ {[%clk 0:01:42]}  Kf8 {[%clk 0:00:13]} 14. Nxb5 {[%clk 0:01:33]}  Bxe3+ {[%clk 0:00:06]} 15. fxe3 {[%clk 0:01:31]}  cxb5 {[%clk 0:00:06]} 16. Nf3 {[%clk 0:01:20]}  Nd7 {[%clk 0:00:04]} 17. Kb1 {[%clk 0:01:13]}  Nc5 {[%clk 0:00:04]} 18. Qf4 {[%clk 0:00:57]}  g6 {[%clk 0:00:02]} 19. Ne5 {[%clk 0:00:39]}  Rh7 {[%clk 0:00:01]} 20. d6 {[%clk 0:00:37]}  Be6 {[%clk 0:00:01]} 21. Nxg6+ {[%clk 0:00:37]}  Kg7 {[%clk 0:00:00]} 22. Qf6+ {[%clk 0:00:35]} 1-0


[Site "https://www.chess.com"]

[Event "Titled Tuesday Blitz July 4 Late 2023"]
[White "Boyer, Mahel"]
[Black "Cardozo Munar, Carlos Eduardo"]
[WhiteFideId "45102422"]
[BlackFideId "4409477"]
[WhiteElo "2693"]
[BlackElo "2332"]
[Result "0-1"]
[Round "5"]
[TimeControl "180+2"]
[Date "2023.07.04"]
[WhiteClock "0:00:00"]
[BlackClock "0:02:28"]
[Board "125"]

1. e4 {[%clk 0:02:42]}  e6 {[%clk 0:02:56]} 2. c3 {[%clk 0:02:27]}  d5 {[%clk 0:02:57]} 3. d3 {[%clk 0:02:28]}  c5 {[%clk 0:02:56]} 4. g3 {[%clk 0:01:41]}  Nf6 {[%clk 0:02:55]} 5. Bg2 {[%clk 0:01:38]}  Be7 {[%clk 0:02:53]} 6. exd5 {[%clk 0:01:39]}  exd5 {[%clk 0:02:51]} 7. Nf3 {[%clk 0:01:40]}  O-O {[%clk 0:02:51]} 8. O-O {[%clk 0:01:41]}  Nc6 {[%clk 0:02:50]} 9. Re1 {[%clk 0:01:09]}  Bg4 {[%clk 0:02:49]} 10. h3 {[%clk 0:01:10]}  Bh5 {[%clk 0:02:49]} 11. Nbd2 {[%clk 0:01:01]}  Re8 {[%clk 0:02:48]} 12. Nf1 {[%clk 0:00:59]}  h6 {[%clk 0:02:45]} 13. g4 {[%clk 0:00:40]}  Bg6 {[%clk 0:02:44]} 14. Ng3 {[%clk 0:00:41]}  Bf8 {[%clk 0:02:32]} 15. Rxe8 {[%clk 0:00:38]}  Qxe8 {[%clk 0:02:30]} 16. Be3 {[%clk 0:00:00]}  Qd7 {[%clk 0:02:28]} 0-1


[Site "https://www.chess.com"]

[Event "Titled Tuesday Blitz July 4 Late 2023"]
[White "The_Straightforward_Rook"]
[Black "HamedWafa4"]
[WhiteElo "2328"]
[BlackElo "2575"]
[Result "1-0"]
[Round "5"]
[TimeControl "180+2"]
[Date "2023.07.04"]
[WhiteClock "0:01:19"]
[BlackClock "0:00:07"]
[Board "127"]

1. d4 {[%clk 0:02:56]}  Nf6 {[%clk 0:02:57]} 2. c4 {[%clk 0:02:55]}  g6 {[%clk 0:02:55]} 3. h4 {[%clk 0:02:54]}  Bg7 {[%clk 0:02:37]} 4. Nc3 {[%clk 0:02:54]}  O-O {[%clk 0:02:35]} 5. e4 {[%clk 0:02:53]}  d6 {[%clk 0:02:34]} 6. Be2 {[%clk 0:02:53]}  h5 {[%clk 0:02:23]} 7. Bg5 {[%clk 0:02:52]}  c5 {[%clk 0:02:20]} 8. d5 {[%clk 0:02:52]}  b5 {[%clk 0:02:12]} 9. cxb5 {[%clk 0:02:51]}  a6 {[%clk 0:02:12]} 10. a4 {[%clk 0:02:50]}  axb5 {[%clk 0:02:11]} 11. Bxb5 {[%clk 0:02:51]}  Na6 {[%clk 0:02:04]} 12. Nf3 {[%clk 0:02:49]}  Nb4 {[%clk 0:01:49]} 13. O-O {[%clk 0:02:49]}  Bg4 {[%clk 0:01:44]} 14. Ra3 {[%clk 0:02:47]}  Nd7 {[%clk 0:01:38]} 15. Qd2 {[%clk 0:02:31]}  Bxf3 {[%clk 0:01:27]} 16. gxf3 {[%clk 0:02:32]}  Ne5 {[%clk 0:01:26]} 17. Kg2 {[%clk 0:02:32]}  Kh7 {[%clk 0:01:17]} 18. Be2 {[%clk 0:02:32]}  Qd7 {[%clk 0:01:15]} 19. f4 {[%clk 0:02:29]}  Ng4 {[%clk 0:01:07]} 20. f3 {[%clk 0:02:20]}  Nf6 {[%clk 0:00:46]} 21. a5 {[%clk 0:01:59]}  Ne8 {[%clk 0:00:43]} 22. Bb5 {[%clk 0:01:51]}  Qc7 {[%clk 0:00:36]} 23. f5 {[%clk 0:01:46]}  gxf5 {[%clk 0:00:25]} 24. a6 {[%clk 0:01:46]}  Rg8 {[%clk 0:00:23]} 25. Kh1 {[%clk 0:01:40]}  Qb6 {[%clk 0:00:15]} 26. Bxe8 {[%clk 0:01:25]}  Raxe8 {[%clk 0:00:14]} 27. exf5 {[%clk 0:01:25]}  Be5 {[%clk 0:00:09]} 28. f4 {[%clk 0:01:23]}  Bd4 {[%clk 0:00:08]} 29. Qe2 {[%clk 0:01:22]}  f6 {[%clk 0:00:08]} 30. Qxh5+ {[%clk 0:01:22]}  Kg7 {[%clk 0:00:09]} 31. Bh6+ {[%clk 0:01:22]}  Kh7 {[%clk 0:00:07]} 32. Bf8# {[%clk 0:01:19]} 1-0


[Site "https://www.chess.com"]

[Event "Titled Tuesday Blitz July 4 Late 2023"]
[White "Palencia Morales, Wilson Guillermo"]
[Black "Vasques, Antonio Pedro Freixial"]
[WhiteFideId "4401859"]
[BlackFideId "1908332"]
[WhiteElo "2544"]
[BlackElo "2326"]
[Result "0-1"]
[Round "5"]
[TimeControl "180+2"]
[Date "2023.07.04"]
[WhiteClock "0:00:00"]
[BlackClock "0:00:52"]
[Board "128"]

1. d4 {[%clk 0:03:00]}  Nf6 {[%clk 0:02:55]} 2. c4 {[%clk 0:02:59]}  e6 {[%clk 0:02:54]} 3. Nf3 {[%clk 0:02:59]}  Bb4+ {[%clk 0:02:54]} 4. Nbd2 {[%clk 0:02:58]}  O-O {[%clk 0:02:53]} 5. a3 {[%clk 0:02:57]}  Be7 {[%clk 0:02:51]} 6. e4 {[%clk 0:02:57]}  d5 {[%clk 0:02:51]} 7. e5 {[%clk 0:02:57]}  Nfd7 {[%clk 0:02:51]} 8. Qc2 {[%clk 0:02:56]}  c5 {[%clk 0:02:35]} 9. dxc5 {[%clk 0:02:55]}  Nxc5 {[%clk 0:02:34]} 10. b4 {[%clk 0:02:55]}  Ncd7 {[%clk 0:02:25]} 11. Bb2 {[%clk 0:02:54]}  a5 {[%clk 0:02:24]} 12. b5 {[%clk 0:02:54]}  dxc4 {[%clk 0:02:24]} 13. Nxc4 {[%clk 0:02:51]}  Nb6 {[%clk 0:02:20]} 14. Nxb6 {[%clk 0:02:38]}  Qxb6 {[%clk 0:02:21]} 15. Bd4 {[%clk 0:02:38]}  Qd8 {[%clk 0:02:20]} 16. Bd3 {[%clk 0:02:36]}  h6 {[%clk 0:02:18]} 17. O-O {[%clk 0:02:35]}  Nd7 {[%clk 0:02:17]} 18. Rfd1 {[%clk 0:02:35]}  b6 {[%clk 0:02:08]} 19. Be4 {[%clk 0:02:34]}  Ra7 {[%clk 0:02:08]} 20. Bc6 {[%clk 0:02:28]}  Qc7 {[%clk 0:02:02]} 21. Rac1 {[%clk 0:02:23]}  Nc5 {[%clk 0:02:02]} 22. a4 {[%clk 0:02:01]}  Bb7 {[%clk 0:02:02]} 23. Bxc5 {[%clk 0:02:01]}  Bxc5 {[%clk 0:02:01]} 24. Rd7 {[%clk 0:02:01]}  Qc8 {[%clk 0:02:01]} 25. Rcd1 {[%clk 0:01:36]}  Bxc6 {[%clk 0:01:41]} 26. Rxa7 {[%clk 0:01:35]}  Bxf3 {[%clk 0:01:38]} 27. gxf3 {[%clk 0:01:34]}  Qb8 {[%clk 0:01:38]} 28. Rdd7 {[%clk 0:01:19]}  Qxe5 {[%clk 0:01:38]} 29. Qe4 {[%clk 0:01:16]}  Qa1+ {[%clk 0:01:26]} 30. Kg2 {[%clk 0:01:15]}  Qa2 {[%clk 0:01:27]} 31. Qh4 {[%clk 0:01:07]}  g5 {[%clk 0:01:18]} 32. Qg3 {[%clk 0:00:58]}  Qxa4 {[%clk 0:01:19]} 33. Qe5 {[%clk 0:00:30]}  Qc2 {[%clk 0:01:04]} 34. Qe1 {[%clk 0:00:29]}  Qb2 {[%clk 0:01:00]} 35. Qd2 {[%clk 0:00:18]}  Qxb5 {[%clk 0:00:55]} 36. h4 {[%clk 0:00:18]}  Qb4 {[%clk 0:00:54]} 37. hxg5 {[%clk 0:00:18]}  Qxd2 {[%clk 0:00:53]} 38. Rxd2 {[%clk 0:00:19]}  hxg5 {[%clk 0:00:54]} 39. Rdd7 {[%clk 0:00:18]}  Kg7 {[%clk 0:00:54]} 40. Rdb7 {[%clk 0:00:17]}  Kf6 {[%clk 0:00:53]} 41. Kf1 {[%clk 0:00:11]}  e5 {[%clk 0:00:52]} 42. Ke2 {[%clk 0:00:10]}  Ke6 {[%clk 0:00:51]} 43. Rc7 {[%clk 0:00:06]}  f6 {[%clk 0:00:51]} 44. Kd3 {[%clk 0:00:05]}  Rd8+ {[%clk 0:00:51]} 45. Kc4 {[%clk 0:00:03]}  Rd4+ {[%clk 0:00:51]} 46. Kb5 {[%clk 0:00:00]}  Rf4 {[%clk 0:00:52]} 0-1


[Site "https://www.chess.com"]

[Event "Titled Tuesday Blitz July 4 Late 2023"]
[White "AdvanceGuard4"]
[Black "Korpics, Zsolt"]
[BlackFideId "705241"]
[WhiteElo "2523"]
[BlackElo "2323"]
[Result "1-0"]
[Round "5"]
[TimeControl "180+2"]
[Date "2023.07.04"]
[WhiteClock "0:00:35"]
[BlackClock "0:00:00"]
[Board "129"]

1. e4 {[%clk 0:03:00]}  c5 {[%clk 0:02:59]} 2. Nf3 {[%clk 0:03:01]}  e6 {[%clk 0:03:00]} 3. c3 {[%clk 0:03:01]}  Nf6 {[%clk 0:02:59]} 4. e5 {[%clk 0:02:59]}  Nd5 {[%clk 0:02:59]} 5. Bc4 {[%clk 0:03:00]}  Nb6 {[%clk 0:02:57]} 6. Bb3 {[%clk 0:03:00]}  d6 {[%clk 0:02:50]} 7. exd6 {[%clk 0:03:00]}  Bxd6 {[%clk 0:02:49]} 8. O-O {[%clk 0:03:00]}  O-O {[%clk 0:02:47]} 9. d4 {[%clk 0:03:01]}  cxd4 {[%clk 0:02:43]} 10. cxd4 {[%clk 0:03:02]}  h6 {[%clk 0:02:39]} 11. Nc3 {[%clk 0:03:00]}  Nc6 {[%clk 0:02:38]} 12. a3 {[%clk 0:02:59]}  e5 {[%clk 0:02:17]} 13. dxe5 {[%clk 0:02:54]}  Nxe5 {[%clk 0:02:16]} 14. Ne4 {[%clk 0:02:16]}  Bc7 {[%clk 0:01:17]} 15. Nxe5 {[%clk 0:02:16]}  Bxe5 {[%clk 0:01:17]} 16. Qh5 {[%clk 0:02:16]}  Qd3 {[%clk 0:00:30]} 17. Qxe5 {[%clk 0:01:21]}  Qxb3 {[%clk 0:00:30]} 18. Be3 {[%clk 0:01:22]}  Nc4 {[%clk 0:00:23]} 19. Nd2 {[%clk 0:01:04]}  Nxd2 {[%clk 0:00:11]} 20. Bxd2 {[%clk 0:01:05]}  Qe6 {[%clk 0:00:10]} 21. Qd4 {[%clk 0:01:00]}  Qd7 {[%clk 0:00:09]} 22. Qe3 {[%clk 0:00:59]}  Re8 {[%clk 0:00:09]} 23. Qc3 {[%clk 0:00:58]}  Qc6 {[%clk 0:00:06]} 24. Qxc6 {[%clk 0:00:54]}  bxc6 {[%clk 0:00:07]} 25. Be3 {[%clk 0:00:53]}  Be6 {[%clk 0:00:05]} 26. Rfd1 {[%clk 0:00:52]}  Bd5 {[%clk 0:00:06]} 27. Rac1 {[%clk 0:00:50]}  a6 {[%clk 0:00:05]} 28. Rc5 {[%clk 0:00:49]}  Rab8 {[%clk 0:00:05]} 29. b4 {[%clk 0:00:49]}  Red8 {[%clk 0:00:04]} 30. f3 {[%clk 0:00:47]}  Kf8 {[%clk 0:00:02]} 31. Kf2 {[%clk 0:00:47]}  Ke7 {[%clk 0:00:02]} 32. h4 {[%clk 0:00:47]}  Ke6 {[%clk 0:00:03]} 33. h5 {[%clk 0:00:46]}  f6 {[%clk 0:00:02]} 34. g4 {[%clk 0:00:47]}  Kf7 {[%clk 0:00:03]} 35. Ra5 {[%clk 0:00:45]}  Bc4 {[%clk 0:00:02]} 36. Rc1 {[%clk 0:00:45]}  Bb5 {[%clk 0:00:01]} 37. a4 {[%clk 0:00:46]}  Bd3 {[%clk 0:00:00]} 38. Bd2 {[%clk 0:00:35]} 1-0


[Site "https://www.chess.com"]